bitfinex/quotes_SOLUSD_20240703
["timestamp","ask_amount","ask_price","bid_price","bid_amount"]
[1720032694316,7.0457,141.93,141.92,0.34]
[1720032697014,7.0464,141.92,141.87,13.3787]
[1720032697216,7.0459,141.93,141.87,23.952]
[1720032697541,7.0459,141.93,141.88,7.048]
[1720032698112,7.0462,141.92,141.87,31.0005]
[1720032698338,7.0462,141.92,141.88,0.34]
[1720032698540,7.0458,141.93,141.88,7.388]
[1720032699220,7.0454,141.94,141.89,8.45686493]
[1720032699531,7.0447,141.95,141.9,8.79633906]
[1720032700121,7.0441,141.97,141.92,7.046]
[1720032700339,7.0441,141.97,141.93,0.34]
[1720032701218,7.0442,141.96,141.93,0.34]
[1720032701743,7.0442,141.96,141.94,0.17]
[1720032701924,65.8234832,141.99,141.94,0.17]
[1720032702123,65.8234832,141.99,141.92,1.7489524]
[1720032702444,65.8234832,141.99,141.93,1.40895756]
[1720032702762,7.0446,141.96,141.94,0.34]
[1720032705446,7.0439,141.97,141.94,0.34]
[1720032706333,7.0439,141.97,141.94,1.74878881]
[1720032706634,7.0424,142.0,141.95,1.40878613]
[1720032706843,7.0423,142.0,141.96,1.74854618]
[1720032707450,7.0428,141.99,141.96,1.74854618]
[1720032708117,7.0428,141.99,141.96,0.34]
[1720032708536,7.0428,141.99,141.96,1.74855368]
[1720032708748,17.6062,142.0,141.94,6.2437]
[1720032708931,7.0432,141.98,141.94,6.2437]
[1720032709135,17.6062,142.0,141.94,6.2437]
[1720032709335,7.0429,141.99,141.94,13.2885]
[1720032709540,7.0433,141.98,141.94,23.8566]
[1720032709735,7.0458,141.93,141.89,6.2052]
[1720032709941,7.0457,141.93,141.89,6.2052]
[1720032710125,7.0457,141.93,141.88,24.6676]
[1720032710824,7.0453,141.94,141.89,7.0476]
[1720032711030,26.79,141.98,141.9,17.6177]
[1720032711225,7.0445,141.96,141.91,7.3865]
[1720032711453,7.0437,141.97,141.92,24.6615]
[1720032711635,7.0437,141.97,141.93,7.3856]
[1720032712556,7.0437,141.97,141.93,0.34]
[1720032713257,7.0437,141.97,141.92,7.046]
[1720032713429,7.0437,141.97,141.93,0.34]
[1720032713956,7.0432,141.98,141.93,0.34]
[1720032714165,7.0432,141.98,141.93,1.74892825]
[1720032714340,15.9452,142.0,141.93,8.79442825]
[1720032714655,7.0432,141.98,141.93,1.74892825]
[1720032714855,7.0429,141.99,141.94,7.0451]
[1720032715150,15.9452,142.0,141.93,0.34]
[1720032715450,7.0439,141.97,141.93,0.34]
[1720032716161,7.0449,141.95,141.93,0.34]
[1720032716570,7.0443,141.96,141.93,0.34]
[1720032716765,7.0443,141.96,141.93,0.17]
[1720032716935,7.0443,141.96,141.92,0.34]
[1720032717350,7.0443,141.96,141.92,1.7489587]
[1720032717747,7.0449,141.95,141.92,0.34]
[1720032717948,7.0444,141.96,141.91,8.79566285]
[1720032718142,7.0438,141.97,141.91,1.74906285]
[1720032718352,33.552,142.0,141.91,1.74906285]
[1720032718353,26.79,141.99,141.91,1.74906285]
[1720032718938,26.79,141.99,141.91,1.74899105]
[1720032718939,7.0449,141.95,141.91,1.74899105]
[1720032719141,7.0449,141.95,141.91,8.79559105]
[1720032719454,7.0444,141.96,141.91,8.79559105]
[1720032720241,7.0447,141.95,141.91,0.34]
[1720032720450,7.0453,141.94,141.91,0.34]
[1720032720655,7.0453,141.94,141.9,0.34]
[1720032720959,7.0449,141.95,141.92,0.17]
[1720032721152,7.0449,141.95,141.9,7.3871]
[1720032723869,44.4011,141.96,141.86,23.8852]
[1720032724073,26.79,141.95,141.86,23.8852]
[1720032724253,26.79,141.95,141.88,17.6202]
[1720032724442,7.0462,141.92,141.86,13.3117]
[1720032724644,7.0459,141.93,141.87,7.0486]
[1720032725364,7.0459,141.93,141.88,0.34]
[1720032725751,7.0462,141.92,141.88,0.34]
[1720032726948,7.0462,141.92,141.88,7.3881]
[1720032727262,7.0459,141.93,141.88,7.3881]
[1720032728567,26.79,141.95,141.89,17.6188]
[1720032728866,7.0453,141.94,141.9,0.34]
[1720032729067,7.0457,141.93,141.9,0.34]
[1720032730038,7.0457,141.93,141.89,0.34]
[1720032730438,7.0463,141.92,141.89,0.34]
[1720032730644,7.0463,141.92,141.88,0.34]
[1720032731091,7.0463,141.92,141.88,1.7494259]
[1720032731248,7.0463,141.92,141.88,0.34]
[1720032731666,7.0463,141.92,141.88,7.3881]
[1720032731853,26.79,141.95,141.88,0.34]
[1720032732063,7.0448,141.95,141.9,7.0471]
[1720032732264,44.3994,141.97,141.91,0.34]
[1720032732749,44.3994,141.97,141.91,0.17]
[1720032732949,7.0457,141.93,141.9,0.34]
[1720032734272,7.0454,141.94,141.9,0.34]
[1720032734572,7.0458,141.93,141.9,0.34]
[1720032734764,44.3994,141.97,141.9,0.34]
[1720032734765,7.0453,141.94,141.9,0.34]
[1720032735881,7.0457,141.93,141.9,0.34]
[1720032737056,7.0465,141.92,141.87,7.0486]
[1720032737276,7.0474,141.9,141.85,7.0496]
[1720032737972,7.0468,141.91,141.86,7.0491]
[1720032738561,7.047,141.91,141.87,0.34]
[1720032740265,42.4735,141.94,141.88,7.0478]
[1720032740590,22.7289,141.94,141.89,7.3876]
[1720032740885,7.0457,141.93,141.9,0.34]
[1720032741763,7.0457,141.93,141.89,0.34]
[1720032741966,15.6835,141.94,141.89,0.34]
[1720032742284,15.6835,141.94,141.9,0.17]
[1720032742468,15.6835,141.94,141.88,0.34]
[1720032742669,7.0464,141.92,141.88,0.34]
[1720032742869,33.297,141.94,141.84,17.6244]
[1720032743074,7.0483,141.88,141.84,17.6244]
[1720032743381,7.0483,141.88,141.83,7.0506]
[1720032743684,7.0478,141.89,141.84,7.05]
[1720032744255,26.79,141.9,141.84,7.05]
[1720032744461,7.0479,141.89,141.85,0.17]
[1720032744668,26.79,141.9,141.85,7.3894]
[1720032744669,33.8372,141.9,141.85,7.3894]
[1720032745394,7.0468,141.91,141.86,7.049]
[1720032745676,7.0468,141.91,141.87,0.34]
[1720032746464,7.0465,141.92,141.87,7.3885]
[1720032746874,26.79,141.93,141.87,7.3885]
[1720032747081,26.79,141.95,141.87,0.34]
[1720032747288,7.0448,141.95,141.9,7.0468]
[1720032747480,33.8342,141.96,141.91,8.79578839]
[1720032747685,33.8342,141.96,141.91,7.0466]
[1720032747992,26.79,141.96,141.92,0.34]
[1720032748183,26.79,141.96,141.88,6.4125]
[1720032748389,7.046,141.93,141.88,13.4605]
[1720032748974,7.0453,141.94,141.89,7.0475]
[1720032749168,7.0453,141.94,141.9,0.34]
[1720032750870,7.0449,141.95,141.9,8.79632673]
[1720032751085,26.79,141.96,141.9,8.79632673]
[1720032751466,16.0368,141.97,141.9,8.79632673]
[1720032751665,7.0447,141.95,141.9,8.79632673]
[1720032751867,7.0443,141.96,141.91,7.0466]
[1720032752068,7.0447,141.95,141.92,0.34]
[1720032752281,26.79,141.97,141.93,0.34]
[1720032752475,33.8338,141.97,141.93,0.34]
[1720032752873,7.0438,141.97,141.93,7.3857]
[1720032753085,7.0438,141.97,141.93,0.34]
[1720032755398,38.96301272,141.99,141.93,0.34]
[1720032755399,7.0433,141.98,141.93,8.79450008]
[1720032757010,7.0437,141.97,141.93,8.79450008]
[1720032757192,7.0437,141.97,141.93,7.3855]
[1720032757998,5.7580832,141.99,141.95,7.0446]
[1720032758202,5.7580832,141.99,141.96,0.34]
[1720032758604,12.8007832,141.99,141.96,0.34]
[1720032758811,5.7580832,141.99,141.95,0.34]
[1720032758993,7.044,141.97,141.95,0.17]
[1720032759385,7.044,141.97,141.94,0.34]
[1720032759702,7.0434,141.98,141.94,0.34]
[1720032760200,23.3650832,141.99,141.94,0.34]
[1720032760380,7.0447,141.95,141.94,0.34]
[1720032760980,7.0443,141.96,141.94,0.17]
[1720032761379,7.0448,141.95,141.91,7.0466]
[1720032763201,7.0448,141.95,141.92,0.17]
[1720032763409,7.0448,141.95,141.92,0.34]
[1720032763578,23.3650832,141.99,141.92,0.34]
[1720032763780,7.0444,141.96,141.92,0.34]
[1720032763998,7.0439,141.97,141.92,7.3861]
[1720032765008,7.0442,141.96,141.92,7.3861]
[1720032765320,7.0438,141.97,141.92,17.9554]
[1720032765615,7.0438,141.97,141.92,25.0013]
[1720032766210,7.0443,141.96,141.92,17.9554]
[1720032766382,7.0447,141.95,141.92,0.34]
[1720032766585,65.4509832,141.99,141.91,7.3866]
[1720032766781,7.0444,141.96,141.91,25.0032]
[1720032767207,7.0439,141.97,141.92,7.046]
[1720032767383,7.0439,141.97,141.93,0.34]
[1720032768507,7.0443,141.96,141.93,0.34]
[1720032769591,12.8010832,141.99,141.93,17.9541]
[1720032769783,12.8010832,141.99,141.94,8.45364824]
[1720032770089,5.7580832,141.99,141.95,7.3846]
[1720032770292,5.7580832,141.99,141.96,1.40869964]
[1720032770512,12.8007832,141.99,141.97,0.34]
[1720032770690,12.8007832,141.99,141.95,0.34]
[1720032771202,7.0432,141.98,141.95,0.34]
[1720032771516,7.0442,141.96,141.95,0.17]
[1720032771713,13.38,141.96,141.95,0.17]
[1720032772078,7.0442,141.96,141.95,0.17]
[1720032772295,20.4242,141.96,141.95,0.17]
[1720032772591,13.38,141.96,141.95,0.17]
[1720032773083,13.38,141.96,141.94,0.34]
[1720032773284,13.38,141.95,141.94,0.34]
[1720032773900,12.8008832,141.99,141.94,7.3852]
[1720032774213,13.38,141.96,141.94,0.34]
[1720032775113,13.38,141.96,141.94,7.385]
[1720032775413,13.38,141.96,141.95,7.0447]
[1720032775620,7.0418,142.01,141.96,24.6546]
[1720032775820,13.38,141.99,141.97,0.34]
[1720032776899,13.38,141.98,141.97,0.34]
[1720032777317,13.38,141.98,141.97,0.17]
[1720032777318,20.4232,141.98,141.97,0.17]
[1720032778394,33.9634,142.02,141.97,0.17]
[1720032778600,13.38,141.98,141.96,0.34]
[1720032778924,13.38,141.97,141.96,0.34]
[1720032779624,13.38,141.97,141.96,7.3842]
[1720032780208,13.38,141.97,141.96,0.34]
[1720032780620,7.0424,142.0,141.96,0.34]
[1720032780826,13.38,141.98,141.97,0.34]
[1720032781307,13.38,141.98,141.96,0.34]
[1720032781525,13.38,141.97,141.96,0.34]
[1720032781917,7.0427,141.99,141.96,0.34]
[1720032782105,13.38,141.97,141.96,0.34]
[1720032782826,20.4237,141.97,141.96,0.34]
[1720032784544,13.38,141.97,141.96,0.34]
[1720032784708,13.38,141.98,141.96,0.17]
[1720032785019,13.38,141.98,141.97,0.17]
[1720032785718,13.38,141.98,141.96,0.17]
[1720032785926,40.42066153,142.02,141.96,0.17]
[1720032785927,13.38,141.97,141.96,0.17]
[1720032786431,13.38,141.97,141.95,0.34]
[1720032786603,13.38,141.96,141.95,0.34]
[1720032788330,7.0427,141.99,141.95,0.34]
[1720032788543,13.38,141.96,141.95,0.34]
[1720032790233,7.0429,141.99,141.95,0.34]
[1720032790444,13.38,141.97,141.95,7.3846]
[1720032790633,7.0424,142.0,141.95,7.3846]
[1720032790825,13.38,141.97,141.95,7.3846]
[1720032791536,6.45746153,142.02,141.96,19.01914208]
[1720032791836,13.38,142.0,141.98,7.0432]
[1720032792142,13.38,142.0,141.99,0.34]
[1720032792938,13.38,142.0,141.99,0.17]
[1720032793718,13.49876153,142.02,141.99,0.17]
[1720032793917,13.49876153,142.02,142.0,0.17]
[1720032794567,13.49876153,142.02,141.99,0.17]
[1720032795338,7.0419,142.01,141.99,0.17]
[1720032795530,7.0422,142.0,141.99,0.17]
[1720032796042,7.0425,142.0,141.96,17.6104]
[1720032796427,24.06066153,142.02,141.94,24.658]
[1720032796821,7.0427,142.0,141.95,7.0446]
[1720032797241,7.0428,141.99,141.96,0.17]
[1720032797423,7.0428,141.99,141.96,0.34]
[1720032797622,7.0428,141.99,141.95,0.34]
[1720032799336,7.0428,141.99,141.95,7.3846]
[1720032800040,7.0432,141.98,141.95,0.34]
[1720032800520,7.0432,141.98,141.94,7.3851]
[1720032802253,7.0429,141.99,141.94,7.3851]
[1720032802451,7.0429,141.99,141.95,7.0445]
[1720032802653,7.0429,141.99,141.96,0.34]
[1720032803356,7.0424,142.0,141.96,0.34]
[1720032804856,7.0427,141.99,141.96,0.34]
[1720032807462,7.0424,142.0,141.96,0.34]
[1720032809478,7.0428,141.99,141.96,0.34]
[1720032809779,7.0428,141.99,141.95,0.34]
[1720032809943,7.0445,141.96,141.92,17.6155]
[1720032810146,7.0438,141.97,141.92,24.6616]
[1720032810345,7.0443,141.96,141.92,24.6616]
[1720032810759,16.5399,142.01,141.91,35.2324]
[1720032811076,23.5816,142.01,141.96,24.6544]
[1720032811285,23.5816,142.01,141.97,0.17]
[1720032811651,23.5816,142.01,141.97,0.34]
[1720032811851,6.45746153,142.02,141.98,7.0432]
[1720032812056,6.45746153,142.02,141.99,7.2126]
[1720032812359,6.45746153,142.02,142.0,0.17]
[1720032812874,6.45746153,142.02,141.99,0.34]
[1720032813079,7.041,142.03,141.99,0.34]
[1720032813861,44.83708505,142.05,142.0,7.0421]
[1720032814067,7.0402,142.04,142.01,0.34]
[1720032814672,7.0402,142.04,142.0,0.34]
[1720032814872,7.0402,142.04,142.02,0.17]
[1720032815067,7.0402,142.04,142.0,0.34]
[1720032815282,7.8855316,142.06,142.01,7.0415]
[1720032815498,7.8855316,142.06,142.02,1.74806396]
[1720032816153,0.8461316,142.06,142.03,7.0403]
[1720032816357,0.8461316,142.06,142.04,8.78744286]
[1720032816573,0.8461316,142.06,142.05,1.4076454]
[1720032816772,0.8461316,142.06,142.05,1.7476454]
[1720032817081,0.8461316,142.06,142.05,8.7873454]
[1720032817254,0.8461316,142.06,142.05,1.7476454]
[1720032820766,0.8461316,142.06,142.05,0.34]
[1720032821590,0.8461316,142.06,141.96,6.5226]
[1720032821591,7.0424,142.0,141.96,6.5226]
[1720032821885,17.5994,142.05,141.96,13.5666]
[1720032821886,7.0416,142.02,141.96,13.5666]
[1720032822086,7.0402,142.05,141.97,17.6093]
[1720032822389,7.0403,142.04,141.97,17.6093]
[1720032822589,7.0409,142.03,141.97,24.6529]
[1720032822887,7.0406,142.04,141.97,17.6093]
[1720032823094,7.0406,142.04,141.98,7.0427]
[1720032824086,7.0406,142.04,141.99,0.34]
[1720032825688,7.0409,142.03,141.99,0.34]
[1720032825881,45.1452316,142.06,141.96,6.5226]
[1720032826079,7.0421,142.01,141.96,6.5226]
[1720032826277,26.7,142.03,141.94,24.6579]
[1720032826278,7.0423,142.0,141.94,24.6579]
[1720032827488,7.0417,142.02,141.95,7.0447]
[1720032827686,7.042,142.01,141.96,0.34]
[1720032830102,26.7,142.01,141.94,17.6128]
[1720032830485,7.0432,141.99,141.93,7.0456]
[1720032831000,33.7421,142.01,141.94,17.6129]
[1720032831175,7.0421,142.01,141.94,17.6129]
[1720032831375,7.0421,142.01,141.96,7.0442]
[1720032831575,7.0421,142.01,141.97,0.17]
[1720032831796,7.0421,142.01,141.97,0.34]
[1720032832971,26.7,142.03,141.97,0.34]
[1720032833176,7.0406,142.04,141.98,7.0428]
[1720032833392,7.0406,142.04,141.99,0.34]
[1720032833607,7.0409,142.03,141.99,0.34]
[1720032834008,7.0409,142.03,141.98,7.3832]
[1720032835522,7.0409,142.03,141.98,0.34]
[1720032838805,44.3073,141.99,141.9,7.0471]
[1720032839121,7.0448,141.95,141.9,7.0471]
[1720032840189,7.0448,141.95,141.91,7.3866]
[1720032840493,7.0448,141.95,141.91,0.34]
[1720032840994,7.0444,141.96,141.91,7.3866]
[1720032841412,7.0447,141.95,141.91,0.34]
[1720032841713,26.7,141.96,141.89,17.6183]
[1720032841915,7.0476,141.9,141.85,24.6725]
[1720032842227,7.0485,141.88,141.79,6.213]
[1720032842396,7.0489,141.87,141.82,7.051]
[1720032842597,7.0483,141.88,141.82,7.051]
[1720032842792,7.0483,141.88,141.83,7.0505]
[1720032843101,33.7478,141.89,141.83,7.0505]
[1720032843308,7.0482,141.88,141.83,7.0505]
[1720032843510,6.3893,141.87,141.74,47.23742827]
[1720032843699,26.7,141.86,141.74,13.46742827]
[1720032843894,26.7,141.83,141.74,9.13382832]
[1720032844097,26.7,141.83,141.75,17.6362]
[1720032844311,33.41409598,141.86,141.74,44.40952832]
[1720032844520,16.5676,141.89,141.75,100.0]
[1720032844694,23.613,141.94,141.89,24.6658]
[1720032844897,43.2676,141.94,141.84,6.166]
[1720032845298,7.0475,141.9,141.85,25.0133]
[1720032845499,7.0475,141.9,141.85,26.42295001]
[1720032845706,7.0467,141.92,141.85,17.9637]
[1720032846096,7.0469,141.91,141.86,7.049]
[1720032846293,7.0469,141.91,141.87,0.34]
[1720032846595,16.5676,141.94,141.87,0.34]
[1720032846596,7.0473,141.9,141.87,0.34]
[1720032846793,16.5676,141.94,141.86,0.34]
[1720032846794,7.0487,141.87,141.86,0.34]
[1720032846993,61.9288,141.93,141.81,24.6798]
[1720032846994,7.0483,141.88,141.85,0.34]
[1720032847214,7.0478,141.89,141.85,0.34]
[1720032847916,7.0485,141.88,141.83,17.6263]
[1720032848145,7.0487,141.87,141.83,17.6263]
[1720032848427,7.048,141.89,141.84,1.26336605]
[1720032849106,26.7,141.9,141.81,6.3383]
[1720032849308,26.7,141.9,141.82,0.34]
[1720032849928,7.0493,141.86,141.81,13.3899]
[1720032850120,7.0488,141.87,141.82,7.051]
[1720032851328,7.0488,141.87,141.83,0.17]
[1720032851530,7.0488,141.87,141.83,0.34]
[1720032852536,7.0493,141.86,141.83,0.34]
[1720032852830,17.6175,141.91,141.77,17.6335]
[1720032852831,42.263,141.87,141.77,17.6335]
[1720032853011,26.7,141.84,141.77,17.6335]
[1720032853208,26.7,141.84,141.74,20.60492832]
[1720032853429,26.7,141.84,141.76,7.0541]
[1720032853430,7.052,141.81,141.76,7.0541]
[1720032853602,7.0522,141.8,141.76,7.0541]
[1720032853803,7.0517,141.81,141.77,7.0536]
[1720032854031,26.7,141.81,141.75,7.0545]
[1720032854540,7.0527,141.79,141.74,7.055]
[1720032854709,7.0531,141.78,141.74,7.055]
[1720032855013,7.0531,141.78,141.73,23.8813]
[1720032855014,7.0531,141.78,141.73,24.6944]
[1720032855217,7.0541,141.77,141.7,17.642]
[1720032855410,7.0541,141.77,141.72,7.0558]
[1720032856229,7.0542,141.76,141.71,7.0564]
[1720032856423,26.7,141.78,141.67,17.6456]
[1720032856619,7.0555,141.74,141.69,7.0575]
[1720032856834,33.7547,141.75,141.7,7.0571]
[1720032857018,33.7548,141.75,141.7,7.0571]
[1720032857625,7.0516,141.82,141.77,7.0532]
[1720032857913,15.2592,141.85,141.76,1.41061309]
[1720032858130,7.0492,141.86,141.8,7.052]
[1720032858317,50.3453,141.87,141.72,21.19]
[1720032858632,26.7,141.84,141.8,7.0518]
[1720032858832,39.7719,141.87,141.81,0.34]
[1720032859013,33.7488,141.87,141.81,0.34]
[1720032859215,26.7,141.87,141.81,0.34]
[1720032859726,7.05,141.85,141.81,0.34]
[1720032859932,7.0502,141.84,141.8,0.34]
[1720032860131,44.3222,141.87,141.8,0.34]
[1720032860330,26.7,141.84,141.8,0.34]
[1720032860930,26.7,141.84,141.77,17.6334]
[1720032861130,7.0516,141.81,141.78,0.34]
[1720032861443,7.0516,141.81,141.76,7.054]
[1720032861444,7.0516,141.81,141.79,0.17]
[1720032861622,7.0516,141.81,141.77,0.34]
[1720032862118,7.0507,141.83,141.78,7.053]
[1720032862323,26.7,141.84,141.79,7.3921]
[1720032862631,26.7,141.84,141.8,7.052]
[1720032862831,26.7,141.84,141.81,0.34]
[1720032863056,26.7,141.84,141.81,0.17]
[1720032863352,7.0507,141.83,141.81,0.17]
[1720032863538,7.0511,141.82,141.81,0.17]
[1720032864137,7.0511,141.82,141.79,0.17]
[1720032864359,26.7,141.84,141.79,0.34]
[1720032864514,33.7506,141.84,141.79,0.34]
[1720032864716,33.7506,141.84,141.79,7.3926]
[1720032865244,26.7,141.84,141.8,7.0521]
[1720032865442,26.7,141.84,141.81,0.34]
[1720032865686,7.0493,141.86,141.81,8.80173214]
[1720032866237,7.0489,141.87,141.82,7.051]
[1720032866439,7.0489,141.87,141.83,0.34]
[1720032866639,7.0493,141.86,141.83,0.34]
[1720032867147,41.9592,141.89,141.82,0.34]
[1720032867955,7.0502,141.84,141.82,0.34]
[1720032868133,7.0498,141.85,141.82,0.34]
[1720032869149,7.0498,141.85,141.81,0.34]
[1720032869328,7.0498,141.85,141.83,0.17]
[1720032869528,7.0498,141.85,141.81,0.34]
[1720032870946,7.0493,141.86,141.81,7.3916]
[1720032871128,7.0493,141.86,141.82,1.40998812]
[1720032871324,15.2592,141.89,141.83,0.34]
[1720032871530,7.0485,141.88,141.83,7.3906]
[1720032871948,7.0485,141.88,141.84,1.40742154]
[1720032872148,7.0485,141.88,141.85,0.34]
[1720032872830,7.0485,141.88,141.84,0.34]
[1720032873236,7.0487,141.87,141.84,0.34]
[1720032873734,7.0487,141.87,141.85,0.17]
[1720032874335,7.0487,141.87,141.83,0.34]
[1720032874890,7.0473,141.9,141.85,24.6725]
[1720032875159,7.0473,141.9,141.86,1.74954524]
[1720032875854,15.6913,141.93,141.86,0.34]
[1720032876025,17.6159,141.92,141.85,0.34]
[1720032876232,7.0488,141.87,141.85,0.34]
[1720032876653,26.7,141.91,141.85,0.34]
[1720032876862,7.0477,141.89,141.86,0.17]
[1720032877162,7.0477,141.89,141.84,7.3898]
[1720032877342,7.0484,141.88,141.84,0.34]
[1720032878679,26.7,141.88,141.79,6.0999]
[1720032878993,5.37242274,141.9,141.79,13.1525]
[1720032879195,17.6238,141.86,141.79,6.0999]
[1720032879494,7.0519,141.81,141.77,17.6338]
[1720032879662,26.7,141.88,141.79,17.6314]
[1720032879867,26.7,141.88,141.79,24.6839]
[1720032880657,7.0511,141.83,141.8,0.34]
[1720032880859,7.0511,141.83,141.81,0.17]
[1720032881076,7.0511,141.83,141.79,0.34]
[1720032881267,7.0503,141.84,141.79,7.3925]
[1720032881470,7.0503,141.84,141.79,0.34]
[1720032882071,33.7498,141.85,141.8,7.052]
[1720032882262,7.0498,141.85,141.81,0.34]
[1720032882462,7.0504,141.84,141.81,0.34]
[1720032882767,7.0504,141.84,141.8,0.34]
[1720032882973,7.0508,141.83,141.8,0.34]
[1720032883179,7.0508,141.83,141.79,0.34]
[1720032883356,7.0508,141.83,141.79,7.3925]
[1720032883561,7.0503,141.84,141.79,7.3925]
[1720032883858,33.7498,141.85,141.8,7.052]
[1720032884060,26.7,141.85,141.81,7.3914]
[1720032884271,26.7,141.89,141.82,17.6278]
[1720032884469,26.7,141.89,141.83,0.34]
[1720032885303,33.7468,141.91,141.86,7.0488]
[1720032885505,7.0472,141.9,141.87,0.34]
[1720032885800,35.70623894,141.94,141.88,7.048]
[1720032885801,7.046,141.93,141.88,7.048]
[1720032885989,7.046,141.93,141.89,1.74938536]
[1720032886171,7.0462,141.92,141.89,1.74938536]
[1720032886367,7.0462,141.92,141.89,0.34]
[1720032886682,7.0467,141.91,141.89,0.34]
[1720032886986,7.0467,141.91,141.9,0.17]
[1720032887170,7.0467,141.91,141.88,0.34]
[1720032889087,7.0467,141.91,141.87,0.34]
[1720032890881,7.0472,141.9,141.87,0.34]
[1720032891090,7.0469,141.91,141.87,0.34]
[1720032891287,7.0462,141.92,141.88,7.048]
[1720032891498,7.0462,141.92,141.89,1.74924564]
[1720032892187,7.0462,141.92,141.9,1.40924212]
[1720032892383,7.0462,141.92,141.91,0.34]
[1720032901112,7.0462,141.92,141.91,0.34]
[1720032903097,44.3106,141.96,141.91,0.34]
[1720032903302,7.0459,141.93,141.91,0.34]
[1720032903496,7.0462,141.92,141.91,0.34]
[1720032906102,7.0462,141.92,141.91,0.306271]
[1720032907497,44.3106,141.96,141.91,0.306271]
[1720032907701,7.0456,141.94,141.92,0.17]
[1720032907885,7.0456,141.94,141.9,1.57918112]
[1720032908281,7.0457,141.93,141.91,0.17]
[1720032908897,7.0457,141.93,141.9,0.34]
[1720032909096,7.0463,141.92,141.9,0.34]
[1720032909299,7.0463,141.92,141.91,0.34]
[1720032909501,7.0463,141.92,141.89,0.34]
[1720032909895,7.0458,141.93,141.89,0.34]
[1720032910304,7.0462,141.92,141.89,0.34]
[1720032910516,7.0468,141.91,141.89,0.34]
[1720032910809,7.0468,141.91,141.9,0.34]
[1720032911014,7.0468,141.91,141.88,0.34]
[1720032911195,7.0468,141.91,141.88,1.74933896]
[1720032911598,7.0464,141.92,141.88,1.74933896]
[1720032912308,7.0467,141.91,141.88,1.74933896]
[1720032912809,7.0467,141.91,141.88,0.34]
[1720032914124,7.0464,141.92,141.88,7.3881]
[1720032914995,7.0467,141.91,141.88,0.34]
[1720032916911,7.0463,141.92,141.88,0.34]
[1720032917702,13.39,141.9,141.88,0.34]
[1720032918620,13.39,141.91,141.88,8.79729146]
[1720032919798,13.39,141.91,141.89,7.0473]
[1720032920016,13.39,141.91,141.9,1.74925934]
[1720032921215,13.39,141.91,141.9,0.34]
[1720032921423,13.39,141.91,141.9,1.74927307]
[1720032921614,13.39,141.91,141.9,1.57927307]
[1720032921816,13.39,141.91,141.9,1.74927307]
[1720032922417,13.39,141.91,141.9,0.34]
[1720032922818,22.5155,141.97,141.92,7.0458]
[1720032922819,7.0439,141.97,141.92,7.0458]
[1720032923012,21.6636,142.01,141.93,1.74877653]
[1720032923309,7.0425,142.0,141.95,7.0443]
[1720032923515,20.4328,141.99,141.96,1.74849004]